Cogmind - Beta 10.2 @@@ ROGUE MODE // 2021.05.28 @ 21:53:44 Player: CrossedViper Result: Destroyed by G-47 Trooper with Particle Gun Performance ------------- Evolutions (2) 1000 Regions Visited (10) 2000 Robots Destroyed (81) 405 Value Destroyed (2854) 2854 Prototype IDs (29) 580 Alien Tech Used (0) 0 Bonus (1343) 1343 TOTAL SCORE: 8182 Bonus ------- High Alert Combat Kills 200 Entered Garrisons 400 Used RIF Installer 500 Aligned with FarCom 300 Friendly Fire -57 Cogmind --------- Core Integrity 0/550 Matter 123/300 Energy 283/310 System Corruption 0% Temperature Cool (30) Movement Treading (200) Ox2 Location -8/Garrison Parts ------- > --- POWER (1) -------- Reinforced Fission Core > --- PROPULSION (2) --- Light Treads Light Treads > --- UTILITY (5) ------ Experimental Heat Sink High-capacity Storage Unit High-capacity Storage Unit Improved Heavy Armor Plating > --- WEAPON (3) ------- Plasma Cannon Plasma Cannon Heavy Assault Rifle > --- INVENTORY (20) --- Light Treads Advanced Myomer Leg High-capacity Matter Pod (200) Armor Integrity Analyzer Advanced Weapon Cycler Improved Heavy Armor Plating Relay Coupler [NC] (22) Plasma Cannon Plasma Cannon Heavy Assault Rifle Improved Assault Rifle 8R-AWN's Boregun 8R-AWN's Boregun Axe Peak State ------------ > --- POWER ------------ Reinforced Fission Core > --- PROPULSION ------- Light Treads Light Treads > --- UTILITY ---------- Experimental Heat Sink High-capacity Storage Unit High-capacity Storage Unit Improved Heavy Armor Plating > --- WEAPON ----------- Plasma Cannon Heavy Assault Rifle Heavy Machine Gun > --- INVENTORY -------- Advanced Myomer Leg Cooling System High-capacity Matter Pod Armor Integrity Analyzer Advanced Weapon Cycler Improved Heavy Armor Plating Relay Coupler [NC] Plasma Cannon Plasma Cannon Plasma Cannon Improved Assault Rifle 8R-AWN's Boregun 8R-AWN's Boregun Axe [Rating: 45] Favorites ----------- Power Deuterium Engine Engine Deuterium Engine Power Core Light Nuclear Core Propulsion Light Treads Treads Light Treads Leg Aluminum Leg Wheel Compact Wheel Utility Humpback Device Improved Heat Sink Storage Humpback Protection Hardened Light Armor Plating Weapon Plasma Cannon Energy Gun EM Shotgun Energy Cannon Plasma Cannon Ballistic Gun Improved Assault Rifle Launcher Rocket Launcher Slashing Weapon Mining Claw Build | -11 -10 -10 -9 -9 -9 -8 -8 -8 -8 -8 ------- Run | Scr Mat Min Mat Min Exi Min Mat Gar Mat Gar Slots Evolved 4 | . . . 2 . . . 2 . . . Power . | . . . . . . . . . . . Propulsion . | . . . . . . . . . . . Utility 3 | . . . 2 . . . 1 . . . Weapon 1 | . . . . . . . 1 . . . Parts Attached 115 | 7 2 . 8 4 16 14 12 22 12 18 Power 7 | 1 . . 1 . 1 1 1 1 . 1 Engine 5 | 1 . . 1 . 1 . 1 1 . . Core 2 | . . . . . . 1 . . . 1 Reactor . | . . . . . . . . . . . Propulsion 27 | 3 . . 2 . 2 5 3 4 5 3 Treads 21 | 2 . . 2 . 2 3 3 2 4 3 Leg 5 | . . . . . . 2 . 2 1 . Wheel 1 | 1 . . . . . . . . . . Hover . | . . . . . . . . . . . Flight . | . . . . . . . . . . . Utility 38 | 1 2 . 2 1 10 4 2 8 2 6 Device 9 | . . . . 1 2 1 . 4 . 1 Storage 8 | 1 2 . . . 1 1 . 1 . 2 Processor . | . . . . . . . . . . . Hackware . | . . . . . . . . . . . Protection 21 | . . . 2 . 7 2 2 3 2 3 Artifact . | . . . . . . . . . . . Weapon 43 | 2 . . 3 3 3 4 6 9 5 8 Energy Gun 7 | . . . 1 2 . 2 . . 2 . Energy Cannon 9 | . . . . . . . 2 3 . 4 Ballistic Gun 19 | 2 . . 1 . 3 1 2 4 3 3 Ballistic Cannon . | . . . . . . . . . . . Launcher 4 | . . . 1 1 . . 1 1 . . Special Weapon . | . . . . . . . . . . . Impact Weapon . | . . . . . . . . . . . Slashing Weapon 4 | . . . . . . 1 1 1 . 1 Piercing Weapon . | . . . . . . . . . . . Special Melee Weapon . | . . . . . . . . . . . Unidentified Prototypes 6 | . . . . . 2 . 1 1 2 . Parts Lost 32 | . . . 1 1 7 10 2 7 . 4 Power 4 | . . . . . 1 1 1 . . 1 Propulsion 8 | . . . 1 . 2 2 1 1 . 1 Utility 8 | . . . . . 3 2 . 2 . 1 Weapon 12 | . . . . 1 1 5 . 4 . 1 Highest Loss Streak 7 | . . . 1 1 6 7 1 4 . 4 Average Slot Usage (%) 89 | . 98 100 98 99 90 76 68 87 89 88 Engine 9 | . 14 14 11 11 11 7 3 9 9 5 Treads 15 | . 14 14 15 22 21 19 15 9 12 17 Leg 2 | . . . . . . 1 . 8 5 . Wheel 1 | . 14 14 4 . . . . . . . Device 7 | . . . . 10 2 4 9 9 13 9 Storage 13 | . 26 28 22 22 14 11 9 9 9 13 Protection 14 | . . . 22 11 17 13 8 17 13 13 Energy Gun 5 | . . . 1 20 18 3 . . 1 . Energy Cannon 5 | . . . . . . . 2 8 11 9 Ballistic Gun 11 | . 28 28 20 . 3 6 7 16 13 17 Slashing Weapon 1 | . . . . . . 5 8 . . . Naked Turns . | . . . . . . . . . . . Heaviest Build 121 | 13 41 41 51 50 121 103 104 111 111 119 Greatest Support 40 | 40 16 16 40 40 40 40 40 40 40 40 Greatest Overweight (x) 5 | 2 2 2 2 1 3 4 4 5 5 2 Average Overweight (x) 2 | . 1 2 1 1 1 2 2 3 2 2 Largest Inventory Capacity 44 | 6 16 16 16 16 36 44 24 44 24 40 Average Capacity 21 | 5 15 16 16 16 22 24 24 24 24 22 Most Carried 24 | 3 9 10 16 16 24 24 19 24 24 24 Average Carried 18 | 1 6 9 11 15 20 19 17 20 22 20 Final Capacity 24 | 6 16 16 16 16 24 24 24 24 24 20 Final Carried 24 | 3 9 10 14 16 22 16 19 22 24 15 Class Distribution -------------------- 28% | Mutant 25% | Hauler-Mutant 20% | Hauler-Tank 19% | Scavenger-Tank 5% | Scavenger-Mutant Dominant Class ---------------- Mutant | -10/Materials Mutant | -10/Mines Mutant | -9/Materials Mutant | -9/Mines Hauler-Mutant | -9/Exiles Hauler-Mutant | -8/Mines Hauler-Mutant | -8/Materials Scavenger-Tank | -8/Garrison Hauler-Tank | -8/Materials Hauler-Tank | -8/Garrison Resources | -11 -10 -10 -9 -9 -9 -8 -8 -8 -8 -8 ----------- Run | Scr Mat Min Mat Min Exi Min Mat Gar Mat Gar Matter Collected 2307 | 195 . 75 216 94 143 276 128 670 290 220 Remotely 253 | . . . . . . . . 253 . . Salvage Created 2934 | . 59 75 132 158 143 276 87 902 679 423 Parts 166 | . 2 6 14 10 10 12 12 46 28 26 Haulers Intercepted 4 | . 1 . . . . . . . 3 . Recyclers Shooed 1 | . . 1 . . . . . . . . Parts Field Recycled . | . . . . . . . . . . . Retrieved Matter . | . . . . . . . . . . . Parts Self-Destructed . | . . . . . . . . . . . Prevented . | . . . . . . . . . . . Kills | -11 -10 -10 -9 -9 -9 -8 -8 -8 -8 -8 ------- Run | Scr Mat Min Mat Min Exi Min Mat Gar Mat Gar Combat Hostiles Destroyed 72 | . . 2 6 5 1 4 8 23 10 13 Melee 4 | . . . . . . 2 2 . . . Guns 37 | . . 2 3 2 1 2 . 17 8 2 Cannons 19 | . . . . . . . . 6 2 11 AOE 12 | . . . 3 3 . . 6 . . . Classes Destroyed 11 | . 1 1 2 2 1 1 1 1 . 1 Hauler 4 | . 1 . . . . . . . 3 . Recycler 3 | . . . . 1 . 1 . . 1 . Watcher 1 | . . . . . . . 1 . . . Swarmer 30 | . . . 4 3 . . 7 7 2 7 Grunt 21 | . . 2 . 1 . 2 . 11 5 . Brawler 4 | . . . . 1 . 1 . 2 . . Duelist 2 | . . . . . . . . 1 . 1 Sentry 10 | . . . 2 . . . 1 1 3 3 Hunter 3 | . . . . . . 1 . 1 . 1 Behemoth 1 | . . . . . . . . . . 1 Zionite 1 | . . . . . 1 . . . . . Best Kill Streak 8 | . 1 2 4 3 1 2 8 5 3 4 Combat Bots Only 7 | . . 2 4 3 1 1 7 5 3 4 Max Kills in Single Turn 4 | . 1 1 3 3 1 1 4 2 1 1 Gunslinging 1 | . . . . . . . . 1 . . Exploded 3 | . . . 3 3 . . 3 . . . Melee 1 | . . . . . . 1 1 . . . Uniques/NPCs Destroyed 1 | . . . . . 1 . . . . . 8R-AWN (-9/Exiles) Combat | -11 -10 -10 -9 -9 -9 -8 -8 -8 -8 -8 -------- Run | Scr Mat Min Mat Min Exi Min Mat Gar Mat Gar Damage Taken 8057 | . 54 151 360 116 1174 1406 324 1892 314 2266 Core 798 | . . 35 16 7 90 93 18 213 59 267 Absorbed by Shields . | . . . . . . . . . . . Core Remaining (%) 78 | 100 . 86 . . . 48 . . . . Volleys Fired 245 | . 7 6 14 8 31 28 3 60 34 54 Largest 3 | . 2 2 2 2 2 2 1 3 3 3 Hottest 216 | . 40 40 40 65 90 68 33 188 216 183 Shots Fired 570 | . 14 12 27 11 62 45 3 161 100 135 Gun 427 | . 14 12 26 10 62 45 . 126 60 72 Cannon 138 | . . . . . . . . 35 40 63 Launcher 5 | . . . 1 1 . . 3 . . . Special . | . . . . . . . . . . . Kinetic 408 | . 14 12 26 6 60 36 . 126 56 72 Thermal 142 | . . . . . . . . 35 44 63 Explosive 5 | . . . 1 1 . . 3 . . . Electromagnetic 15 | . . . . 4 2 9 . . . . Robot Hit Streak 28 | . 8 7 15 8 12 10 2 12 16 28 Robot Miss Streak 6 | . 2 1 3 1 2 2 . 6 2 5 Penetration Max 1 | . . . . . . . . 1 . . Secondary Targets 7 | . . 1 . . . 1 . 5 . . Max Gunslinging Chain 1 | . . 1 . . . 1 . 1 . . Shots Hit Robots 400 | . 10 10 19 9 49 39 7 100 70 87 Core Hits 147 | . 2 4 8 7 16 12 12 41 23 22 Critical Hits 14 | . . . . . 1 . . 10 1 2 Critical Kills 5 | . . . . . . . . 4 1 . Critical Parts Destroyed 8 | . . . . . . . . 6 . 2 Melee Attacks 25 | . . . . . . 10 8 5 . 2 Impact . | . . . . . . . . . . . Slashing 25 | . . . . . . 10 8 5 . 2 Piercing . | . . . . . . . . . . . Sneak Attacks 1 | . . . . . . 1 . . . . Combat Hostiles . | . . . . . . . . . . . Follow-up Attacks . | . . . . . . . . . . . Damage Inflicted 7906 | . 112 142 420 264 666 573 882 1670 1314 1863 Guns 3994 | . 112 117 211 106 641 355 . 1178 644 630 Cannons 2385 | . . . . . . . . 492 660 1233 Explosions 1081 | . . . 209 155 . . 717 . . . Melee 383 | . . . . . . 218 165 . . . Ramming 63 | . . 25 . 3 25 . . . 10 . Kinetic 3737 | . 112 117 211 52 608 233 . 1178 596 630 Thermal 2433 | . . . . . . . . 492 708 1233 Explosive 1081 | . . . 209 155 . . 717 . . . Electromagnetic 209 | . . . . 54 33 122 . . . . Impact . | . . . . . . . . . . . Slashing 383 | . . . . . . 218 165 . . . Piercing . | . . . . . . . . . . . Highest Corruption 5 | . . 2 . . . 5 . . . . Average Corruption 4 | . . 2 . . . 5 . . . . Corruption Purged . | . . . . . . . . . . . Effects 8 | . . . . . . 8 . . . . Message Errors 2 | . . . . . . 2 . . . . Matter Fused 1 | . . . . . . 1 . . . . Data Loss (minor) 1 | . . . . . . 1 . . . . Targeting Errors 4 | . . . . . . 4 . . . . Overload Shots . | . . . . . . . . . . . Overflow Damage 101 | . . . . . . . 69 8 16 8 Projectiles 32 | . . . . . . . . 8 16 8 Explosions 65 | . . . . . . . 65 . . . Melee 4 | . . . . . . . 4 . . . Knockbacks . | . . . . . . . . . . . Impact . | . . . . . . . . . . . Kinetic . | . . . . . . . . . . . Secondary . | . . . . . . . . . . . Self-Inflicted Damage 138 | . . 12 . 45 . . 81 . . . Shots 4 | . . . . 1 . . 3 . . . Rammed 13 | . . 5 . . 6 . . . 2 . Targets Rammed 14 | . . 5 . 1 6 . . . 2 . Kicked . | . . . . . . . . . . . Crushed 1 | . . . . 1 . . . . . . Highest Temperature 375 | . . 4 45 108 53 332 . 357 99 375 Average Temperature 88 | . . 2 23 50 10 146 . 92 17 123 Received Heat Transfer 1932 | . 30 75 90 24 . 540 27 675 135 336 Effects 6 | . . . . . . 1 . 1 . 4 Energy Bleed 5 | . . . . . . 1 . . . 4 Damage (minor) 1 | . . . . . . . . 1 . . Siege Activations . | . . . . . . . . . . . Robots Corrupted . | . . . . . . . . . . . Combat Hostiles . | . . . . . . . . . . . Parts Fried . | . . . . . . . . . . . Impact Corruptions . | . . . . . . . . . . . Robots Melted . | . . . . . . . . . . . Combat Hostiles . | . . . . . . . . . . . Parts Melted 9 | . . . . . . . . 3 3 3 Heat Transferred 4559 | . . . . . . . . 898 1411 2250 Parts Sabotaged . | . . . . . . . . . . . Parts Stolen . | . . . . . . . . . . . Parts Stripped . | . . . . . . . . . . . Power Chain Reactions . | . . . . . . . . . . . Missiles Intercepted . | . . . . . . . . . . . Alert | -11 -10 -10 -9 -9 -9 -8 -8 -8 -8 -8 ------- Run | Scr Mat Min Mat Min Exi Min Mat Gar Mat Gar Peak Influence 865 | . 22 58 205 189 . 55 299 865 430 556 Initial 421 | . . 8 22 79 . . 11 194 421 195 Average 273 | . 6 24 134 78 . 26 169 587 280 353 Maximum Alert Level 3 | . . . 1 . . . 1 3 2 2 Low Security (%) 42 | 100 100 100 73 100 . 100 42 2 21 2 Level 1 32 | . . . 26 . . . 57 26 53 70 Level 2 15 | . . . . . . . . 29 24 26 Level 3 9 | . . . . . . . . 41 . . Level 4 . | . . . . . . . . . . . Level 5 . | . . . . . . . . . . . High Security . | . . . . . . . . . . . Max Security . | . . . . . . . . . . . Squads Dispatched 2 | . . . 1 . . . . . 1 . Investigation 1 | . . . 1 . . . . . . . Extermination . | . . . . . . . . . . . Reinforcement 1 | . . . . . . . . . 1 . Assault . | . . . . . . . . . . . Garrison . | . . . . . . . . . . . Intercept . | . . . . . . . . . . . Construction Impeded 1 | . . . . . . . . . 1 . Haulers Reinforced . | . . . . . . . . . . . Stealth | -11 -10 -10 -9 -9 -9 -8 -8 -8 -8 -8 --------- Run | Scr Mat Min Mat Min Exi Min Mat Gar Mat Gar Distress Signals 5 | . 2 . . . . . 1 . 2 . Communications Jammed . | . . . . . . . . . . . Distress Signals . | . . . . . . . . . . . Times Spotted 102 | . 4 2 8 5 1 4 14 26 18 20 Peak Tracking Total 8 | . 5 2 4 3 3 3 8 6 5 7 Tactical Retreats 10 | . . . . . . . 4 4 1 1 Traps | -11 -10 -10 -9 -9 -9 -8 -8 -8 -8 -8 ------- Run | Scr Mat Min Mat Min Exi Min Mat Gar Mat Gar Traps Triggered 8 | . . . . . . . 1 6 . 1 Indirectly . | . . . . . . . . . . . Trap Hack Attempts . | . . . . . . . . . . . Triggered . | . . . . . . . . . . . Disarmed . | . . . . . . . . . . . Reprogrammed . | . . . . . . . . . . . Reused . | . . . . . . . . . . . Traps Extracted . | . . . . . . . . . . . Installed . | . . . . . . . . . . . Triggered . | . . . . . . . . . . . Machines | -11 -10 -10 -9 -9 -9 -8 -8 -8 -8 -8 ---------- Run | Scr Mat Min Mat Min Exi Min Mat Gar Mat Gar Machines Disabled 4 | . . . . . . . 1 2 . 1 Max in Single Turn 1 | . . . . . . . 1 1 . 1 Garrison Relay 3 | . . . . . . . . 2 . 1 Machines Sabotaged . | . . . . . . . . . . . Garrisons Compromised . | . . . . . . . . . . . Overloaded Fab Kills . | . . . . . . . . . . . Fab Network Shutdowns . | . . . . . . . . . . . Hacking | -11 -10 -10 -9 -9 -9 -8 -8 -8 -8 -8 --------- Run | Scr Mat Min Mat Min Exi Min Mat Gar Mat Gar Machines Accessed 12 | . 1 . 1 . 2 . 2 . 6 . Terminals 8 | . 1 . 1 . . . 1 . 5 . Fabricators . | . . . . . . . . . . . Repair Stations . | . . . . . . . . . . . Recycling Units . | . . . . . . . . . . . Scanalyzers . | . . . . . . . . . . . Garrison Access 2 | . . . . . . . 1 . 1 . Total Hacks 27 | . 2 . 5 . 2 . 7 . 11 . Successful 16 | . 1 . 2 . 2 . 2 . 9 . Failed 10 | . . . 3 . . . 5 . 2 . Catastrophic 1 | . . . 1 . . . . . . . Database Lockouts 1 | . 1 . . . . . . . . . Manual 23 | . 2 . 5 . 1 . 7 . 8 . Terminals 23 | . 2 . 5 . . . 6 . 10 . Fabricators . | . . . . . . . . . . . Repair Stations . | . . . . . . . . . . . Recycling Units . | . . . . . . . . . . . Scanalyzers . | . . . . . . . . . . . Garrison Access 2 | . . . . . . . 1 . 1 . Terminal Hacks 10 | . 1 . 2 . 2 . 1 . 4 . Record 2 | . . . . . 1 . . . 1 . Part Schematic 1 | . . . 1 . . . . . . . Robot Analysis 3 | . 1 . 1 . . . 1 . . . Terminal Index 1 | . . . . . . . . . 1 . Garrison Index 1 | . . . . . . . . . 1 . Unreport Threat 1 | . . . . . . . . . 1 . EX-Prototype ID Bank 1 | . . . . . 1 . . . . . Fabricator Hacks . | . . . . . . . . . . . Repair Station Hacks . | . . . . . . . . . . . Recycling Unit Hacks . | . . . . . . . . . . . Scanalyzer . | . . . . . . . . . . . Garrison Access Hacks 2 | . . . . . . . 1 . 1 . Unlock Access 2 | . . . . . . . 1 . 1 . Unauthorized Hacks 4 | . . . . . . . . . 4 . Terminals 4 | . . . . . . . . . 4 . Assimilate 1 | . . . . . . . . . 1 . Botnet 2 | . . . . . . . . . 2 . Operators 1 | . . . . . . . . . 1 . Fabricators . | . . . . . . . . . . . Repair Stations . | . . . . . . . . . . . Recycling Units . | . . . . . . . . . . . Scanalyzers . | . . . . . . . . . . . Garrison Access . | . . . . . . . . . . . Data Cores Recovered . | . . . . . . . . . . . Used . | . . . . . . . . . . . Hacking Detections 7 | . 1 . 1 . . . 2 . 3 . Full Trace Events 1 | . . . 1 . . . . . . . Feedback Events . | . . . . . . . . . . . Feedback Blocked . | . . . . . . . . . . . Robot Schematics Acquired . | . . . . . . . . . . . Robots Built . | . . . . . . . . . . . Matter . | . . . . . . . . . . . Time . | . . . . . . . . . . . Total Robot Build Rating . | . . . . . . . . . . . Part Schematics Acquired 1 | . . . 1 . . . . . . . Parts Built . | . . . . . . . . . . . Matter . | . . . . . . . . . . . Time . | . . . . . . . . . . . Total Part Build Rating . | . . . . . . . . . . . Parts Repaired . | . . . . . . . . . . . Time . | . . . . . . . . . . . Parts Recycled . | . . . . . . . . . . . Recycled Matter . | . . . . . . . . . . . Retrieved Matter . | . . . . . . . . . . . Retrieved Components . | . . . . . . . . . . . Parts Scanalyzed . | . . . . . . . . . . . Part Schematics Acquired . | . . . . . . . . . . . Parts Damaged . | . . . . . . . . . . . Bothacking | -11 -10 -10 -9 -9 -9 -8 -8 -8 -8 -8 ------------ Run | Scr Mat Min Mat Min Exi Min Mat Gar Mat Gar Used RIF Installer 1 | . . . . . . . . 1 . . Robots Hacked . | . . . . . . . . . . . Non-combat . | . . . . . . . . . . . Combat . | . . . . . . . . . . . Robot Hacks Applied . | . . . . . . . . . . . Relay Couplers Released 10 | . . . . . . . . 7 . 3 Machine Destruction 10 | . . . . . . . . 7 . 3 Robots Rewired . | . . . . . . . . . . . Allies Hacked . | . . . . . . . . . . . Hacks Repelled . | . . . . . . . . . . . Allies | -11 -10 -10 -9 -9 -9 -8 -8 -8 -8 -8 -------- Run | Scr Mat Min Mat Min Exi Min Mat Gar Mat Gar Total Allies 2 | . . . . 1 . . . . 1 . Largest Group 1 | . . . . 1 1 . . . 1 1 Highest-Rated Group 31 | . . . . 31 31 . . . 10 10 Highest-Rated Ally 31 | . . . . 31 31 . . . 10 10 Total Orders 1 | . . . . . . . . . . 1 STAY 1 | . . . . . . . . . . 1 Ally Attacks 5 | . . . . . 5 . . . . . Total Damage 258 | . . . . . 258 . . . . . Kills 1 | . . . . . 1 . . . . . Allies Corrupted . | . . . . . . . . . . . Allies Melted . | . . . . . . . . . . . Turrets Deployed 2 | . . . . . 2 . . . . . Intel | -11 -10 -10 -9 -9 -9 -8 -8 -8 -8 -8 ------- Run | Scr Mat Min Mat Min Exi Min Mat Gar Mat Gar Robot Analysis Total 3 | . 1 . 1 . . . 1 . . . Derelict Logs Recovered 1 | . . . . 1 . . . . . . Drone Launches . | . . . . . . . . . . . Drone Recoveries . | . . . . . . . . . . . Exploration | -11 -10 -10 -9 -9 -9 -8 -8 -8 -8 -8 ------------- Run | Scr Mat Min Mat Min Exi Min Mat Gar Mat Gar Turns Passed 5935 | 76 129 250 380 631 902 355 363 1169 1097 583 Spaces Moved 2482 | 57 84 186 168 335 388 112 147 384 432 189 Core 23 | 23 . . . . . . . . . . Treads 1882 | 11 . . 168 335 388 112 147 210 322 189 Legs 284 | . . . . . . . . 174 110 . Wheels 293 | 23 84 186 . . . . . . . . Hover . | . . . . . . . . . . . Flight . | . . . . . . . . . . . Fastest Speed 50 | 50 100 120 180 180 180 200 200 200 200 200 Average Speed 193 | 108 118 120 189 180 193 203 206 235 217 200 Slowest Speed 270 | 160 120 120 200 180 220 240 240 270 270 200 Overloaded Moves . | . . . . . . . . . . . Propulsion Burnouts . | . . . . . . . . . . . Robots Hopped . | . . . . . . . . . . . Cave-ins Triggered . | . . . . . . . . . . . Exploration Rate (%) 35 | 4 23 43 21 68 69 27 16 41 44 32 Regions Visited 10 Branch Regions 4 Pre-discovered Areas 2 | . . 1 . . 1 . . . . . Known Exits Taken 2 | . . . . . . . 1 . 1 . Unknown Exits Taken 7 | 1 1 1 1 1 1 1 . . . . Scrap Searched 1 | . . . . 1 . . . . . . Spaces Dug 14 | . . . . 11 . . 1 1 . 1 Terrain Destroyed 44 | . . . 9 11 . . 9 5 9 1 Melee 2 | . . . . . . . . 1 . 1 Projectile 13 | . . . . . . . . 4 9 . AOE 29 | . . . 9 11 . . 9 . . . Terrain Rammed . | . . . . . . . . . . . Walls Destroyed . | . . . . . . . . . . . Machines Disabled . | . . . . . . . . . . . Actions | -11 -10 -10 -9 -9 -9 -8 -8 -8 -8 -8 --------- Run | Scr Mat Min Mat Min Exi Min Mat Gar Mat Gar Total 3085 | 69 99 200 202 350 473 175 186 520 520 291 Wait 39 | . . 3 . . 10 3 10 6 2 5 Move 2472 | 56 83 185 167 334 387 111 146 383 431 189 Hop . | . . . . . . . . . . . Pick Up 93 | 6 6 1 10 3 15 4 3 20 18 7 Fast Attach 27 | 3 1 . . . 1 3 10 2 4 3 Attach 61 | 3 . . 4 1 10 10 2 19 4 8 Detach 9 | . . . . . 2 . 2 5 . . Swap 27 | 1 1 . 4 3 5 1 . 1 4 7 Drop 62 | . 1 . 3 . 6 5 2 10 21 14 Fire 245 | . 7 6 14 8 31 28 3 60 34 54 Melee 25 | . . . . . . 10 8 5 . 2 Ram 5 | . . 5 . . . . . . . . Kick . | . . . . . . . . . . . Crush 9 | . . . . 1 6 . . . 2 . Escape Stasis 11 | . . . . . . . . 9 . 2 Rewire . | . . . . . . . . . . . Trap . | . . . . . . . . . . . Miscellaneous . | . . . . . . . . . . . Route ------- -11/Scrapyard -10/Materials (discovered 2 exits: *Mat / [*Min]) -10/Mines -9/Materials -9/Mines (discovered 2 exits: *Mat / *Exi) -9/Exiles (discovered 2 exits: [*Min x2]) -8/Mines -8/Materials -8/Garrison -8/Materials (discovered 2 exits: [*Fac] / Gar) -8/Garrison History --------- Turn | Location | Event 4 | -11/Scrapyard | Discovered new exit (range 16) 77 | -11/Scrapyard | Entered Materials 97 | -10/Materials | Central database locked down 150 | -10/Materials | Discovered new exit (range 16) 155 | -10/Materials | Discovered new exit (range 14) 206 | -10/Materials | Entered Mines 300 | -10/Mines | Build established: Mutant 420 | -10/Mines | Discovered new exit (range 6) 421 | -10/Mines | Learned location of Storage (-7) 456 | -10/Mines | Entered Materials 456 | -9/Materials | Evolved 2 slots: Utility x2 802 | -9/Materials | Discovered new exit (range 6) 836 | -9/Materials | Entered Mines 1181 | -9/Mines | Learned Materials emergency access door positions 1222 | -9/Mines | Escorted by a lone wolf Derelict 1336 | -9/Mines | Discovered new exit (range 14) 1408 | -9/Mines | Deemed a non-threat by the Exiles lab entrance 1408 | -9/Mines | Discovered new exit (range 5) 1467 | -9/Mines | Entered Exiles 1467 | -9/Exiles | Accompanied by 1 ally 1498 | -9/Exiles | Discovered new exit (range 15) 1516 | -9/Exiles | Met 8R-AWN 1545 | -9/Exiles | Met EX-HEX 1626 | -9/Exiles | Met EX-DEC 1662 | -9/Exiles | Learned location of Zion (-7) 1917 | -9/Exiles | Met EX-BIN 1939 | -9/Exiles | Aligned with FarCom system 1941 | -9/Exiles | Given EX-Vault access code 1987 | -9/Exiles | Opened EX-Vault 1998 | -9/Exiles | Build established: Hauler-Mutant 2001 | -9/Exiles | Found Deploy-a-Sentry 2004 | -9/Exiles | Found Deploy-a-Sentry 2047 | -9/Exiles | Warned to stay clear of 0b10 Research branches 2070 | -9/Exiles | Exiles lab attacked by MAIN.C 2151 | -9/Exiles | DAS Turret deployed 2156 | -9/Exiles | Attacked by the Exiles 2158 | -9/Exiles | DAS Turret deployed 2198 | -9/Exiles | Discovered new exit (range 10) 2321 | -9/Exiles | Lost 6 parts (1p2n2u1w) 2332 | -9/Exiles | Destroyed 8R-AWN 2339 | -9/Exiles | Found Prototype Ballistic Gun 2346 | -9/Exiles | Found Prototype Ballistic Gun 2355 | -9/Exiles | Found Prototype Device 2365 | -9/Exiles | Identified AS-neutralizer No. 17b 2369 | -9/Exiles | Entered Mines 2578 | -8/Mines | Core integrity fell below 50% 2600 | -8/Mines | Lost 7 parts (2n1u4w) 2654 | -8/Mines | Discovered new exit (range 3) 2724 | -8/Mines | Entered Materials 2724 | -8/Materials | Evolved 2 slots: Utility x1, Weapon x1 2751 | -8/Materials | Identified exit to Garrison 2898 | -8/Materials | Destroyed 7 combat bots 3087 | -8/Materials | Entered Garrison 3115 | -8/Garrison | Identified 8R-AWN's Boregun (x2) 3146 | -8/Garrison | Lost 4 parts (1u3w) 3254 | -8/Garrison | Triggered checkpoint 3417 | -8/Garrison | Garrison Relay disabled 3564 | -8/Garrison | Triggered checkpoint 3571 | -8/Garrison | Triggered checkpoint 3884 | -8/Garrison | Discovered new exit (range 8) 3919 | -8/Garrison | Installed Relay Interface Framework 4014 | -8/Garrison | Triggered checkpoint 4033 | -8/Garrison | Build established: Scavenger-Tank 4082 | -8/Garrison | Garrison Relay disabled 4256 | -8/Garrison | Entered Materials 4662 | -8/Materials | Build established: Hauler-Tank 4662 | -8/Materials | Core integrity fell below 50% 4917 | -8/Materials | Discovered new exit (range 10) 5351 | -8/Materials | Identified exit to Garrison 5353 | -8/Materials | Entered Garrison 5353 | -8/Garrison | Accompanied by 1 ally 5472 | -8/Garrison | Triggered checkpoint 5491 | -8/Garrison | Garrison Relay disabled 5664 | -8/Garrison | Spotted B-75 Beast 5722 | -8/Garrison | Core integrity fell below 20% 5728 | -8/Garrison | Destroyed B-75 Beast 5749 | -8/Garrison | Lost 4 parts (1p1n1u1w) 5858 | -8/Garrison | Triggered checkpoint 5897 | -8/Garrison | Triggered checkpoint 5936 | -8/Garrison | Destroyed by G-47 Trooper with Particle Gun Last Messages --------------- 05858_ Beams of light sweep through the air. An alarm sounds. 05858_ Y-45 Defender destroyed. 05870_ Dropped Cooling System. 05870_ Acquired 57 matter. 05874_ Acquired Lgt. Treads. 05877_ Acquired Hvy. Assault Rifle. 05887_ Slug penetrates Wall. 05891_ H-55 Commando suffers critical hit. 05891_ Destroyed Carbon-fiber Leg. 05893_ Slug penetrates Reinforced Barrier. 05897_ H-55 Commando heat spikes uncontrollably. 05897_ Targeting Computer melted. 05897_ Carbon-fiber Leg melted. 05897_ H-55 Commando destroyed. 05897_ Beams of light sweep through the air. An alarm sounds. 05910_ C-30 ARC bursts open, deploying its payload. 05910_ G-47 Trooper unfolds itself. 05922_ S-10 Pest destroyed. 05923_ Hvy. Machine Gun severed. 05935_ L-31 Rogue destroyed. Map ----- +----------------------------------------------------+ | ?????????????????????????????????????????????????? | | ?????????????????????????????????????????????????? | | ?????????????????????????????????????????????????? | | ?????????????????????????????????????????????????? | | ?????????????????????????????????????????????????? | | ???????????????????####?#""""#???????????????????? | | ???????????????????# ? ??????????????????? | | ??????????????????? ? %* ?? #??????????????? | | ??????????????????? ? ?? #??????????????? | | ???????????????????# ## #? #??????????????? | | ???????????????????# ## ## #??????????????? | | ???????????????????" "??????????????? | | ???????????????????" "??????????????? | | ???????????????????" ? "??????????????? | | ???????????????????" ?%""??????????????? | | ####???????????????# ## #? " #??????????????? | | =! #?????########### ## ## ########???????? | | !=[#?????+ ????????? | | !#?????# ????????? | | !#?????# #??????# g! #??????????????? | | ^!!#?????# #??????## ##[* ## #???????????????? | | ####?????# #???????# ##%![%#???????????????????? | | #????????# #???????# ##;####???????????????????? | | #????????# #???????# ##g#??????????????????????? | | #????????# #???????# ##%#??????????????????????? | | #????????# #???????# ##@#??????????????????????? | | ########## #########= ## #??????????????????????? | | * [ = "= #??????????????????????? | | =[= ####??????????????????????? | | ########## #####+######?????????????????????????? | | #????????# #????????????????????????????????????? | | #????????# #????????????????????????????????????? | | #????????# #????????????????????????????????????? | | ?????????# #####+#??????????????????????????????? | | ?????????+ #??????????????????????????????? | | ?????????# ##### #??????????????????????????????? | | ????????## #???# #??????????????????????????????? | | ????????# *!#???# #??????????????????????????????? | | ????????##% #???# #??????????????????????????????? | | ######+### #???# ######?????????????????????????? | | # ##### ##] #?????????????????????????? | | # " " [! #?????????????????????????? | | # ##+########## ##]]]#?????????????????????????? | | # #???????????# ######?????????????????????????? | | #####???????????# #??????????????????????????????? | | ????????????????# #??????????????????????????????? | | ????????????????# #??????????????????????????????? | | ??????????#####?# #??????????????????????????????? | | ??????????+ #?# #??????????????????????????????? | | ????????###=%=### #??????????????????????????????? | +----------------------------------------------------+ Best States ------------- Heat Dissipation 67 Energy Generation 19 Energy Capacity 310 Matter Stores 300 Matter Capacity 300 Sight Range 16 Terrain Scan Density 10 Armor Coverage 600 Resistance: TH 10 Resistance: EM 15 Core Shielding 20 Evasion (%) 40 Recoil Reduction 2 Item Schematics ----------------- Hcp. Storage Unit | -9/Materials | Hacked Robot Schematics ------------------ None Fabricated ------------ Nothing Alien Tech Used ----------------- None Achievements -------------- None Challenges ------------ None Game ------ Seed SegregatorBurstMachine Manual? 0 Play Time 00:33:15 Cumulative 414.9 hours Start 2021.05.28 @ 21:19:32 End 2021.05.28 @ 21:53:44 Sessions 1 Manual Loads 0 Difficulty Rogue Special Mode None Game No. 319 Rogue 312 Adventurer 0 Explorer 7 Win Type - Total 17 Types 7/1/9/0/0/0/0/0/0 Lore% 80 Gallery% 93 Achievement% 77 Wizard Run 0 Options --------- ASCII 0 Keyboard 0 Movement Numpad Keybinds 0 Fullscreen 1 Font 18/X11Bold Map View 76x50 Tactical HUD 1 Map Filters NONE Filters NONE Steam 1 RUN: 3433ed1d-0af0-449d-823f-0a57090e04a3